bitfinex-derivatives/quotes_BTCF0:USTF0_20250527
["timestamp","ask_amount","ask_price","bid_price","bid_amount"]
[1748334834069,1.8538246,109650.0,109640.0,0.32397077]
[1748334835070,1.8538246,109650.0,109640.0,0.37173395]
[1748334836991,1.72532001,109650.0,109640.0,0.37173395]
[1748334837183,1.8538246,109650.0,109640.0,0.37173395]
[1748334837691,1.8538246,109650.0,109640.0,0.32397077]
[1748334840489,1.85821642,109650.0,109640.0,0.32397077]
[1748334841692,1.72971183,109650.0,109640.0,0.32397077]
[1748334841886,1.85821642,109650.0,109640.0,0.32397077]
[1748334845395,1.72971183,109650.0,109640.0,0.32397077]
[1748334845693,1.85821642,109650.0,109640.0,0.32397077]
[1748334846792,1.85829642,109650.0,109640.0,0.32397077]
[1748334848493,1.88109642,109650.0,109640.0,0.32397077]
[1748334849785,1.85972642,109650.0,109640.0,0.32397077]
[1748334850094,1.73122183,109650.0,109640.0,0.32397077]
[1748334850290,1.85972642,109650.0,109640.0,0.13397077]
[1748334850494,1.85972642,109650.0,109640.0,0.09994217]
[1748334850689,1.85972642,109650.0,109640.0,0.01057448]
[1748334851191,1.73122183,109650.0,109640.0,0.01057448]
[1748334851384,1.85984642,109650.0,109640.0,0.01057448]
[1748334851588,1.8554546,109650.0,109640.0,0.01057448]
[1748334851783,1.72695001,109650.0,109640.0,0.01057448]
[1748334851985,1.72695001,109650.0,109640.0,0.05844762]
[1748334852594,1.74831001,109650.0,109640.0,0.05844762]
[1748334852993,0.86099001,109650.0,109640.0,0.05844762]
[1748334853197,1.80465506,109650.0,109640.0,0.44153865]
[1748334853792,1.80453506,109650.0,109640.0,0.44153865]
[1748334853992,1.74819001,109650.0,109640.0,0.44153865]
[1748334854193,1.74831001,109650.0,109640.0,0.44153865]
[1748334854394,1.74819001,109650.0,109640.0,0.44153865]
[1748334854691,1.74831001,109650.0,109640.0,0.44153865]
[1748334855295,1.8768146,109650.0,109640.0,0.44153865]
[1748334856502,1.74831001,109650.0,109640.0,0.44153865]
[1748334857002,1.8768146,109650.0,109640.0,0.44153865]
[1748334858300,1.8768146,109650.0,109640.0,0.37363865]
[1748334858696,1.88120642,109650.0,109640.0,0.37363865]
[1748334859699,1.2049239,109650.0,109640.0,0.37363865]
[1748334859892,1.6154039,109650.0,109640.0,0.40693865]
[1748334860294,1.6152839,109650.0,109640.0,0.40693865]
[1748334860495,1.6154039,109650.0,109640.0,0.40693865]
[1748334860903,1.6154039,109650.0,109640.0,0.46354653]
[1748334860904,1.6152839,109650.0,109640.0,0.46354653]
[1748334861302,1.6152839,109650.0,109640.0,0.46546979]
[1748334861499,1.6154039,109650.0,109640.0,0.46546979]
[1748334863307,1.6153639,109650.0,109640.0,0.45778102]
[1748334863705,1.6153639,109650.0,109640.0,0.64014122]
[1748334864103,1.1391639,109650.0,109640.0,0.45778102]
[1748334864302,1.6153639,109650.0,109640.0,0.45778102]
[1748334865408,1.6153639,109650.0,109640.0,0.64014122]
[1748334865610,1.6153639,109650.0,109640.0,0.3533]
[1748334867509,1.2048839,109650.0,109640.0,0.3533]
[1748334867807,1.6153239,109650.0,109640.0,0.3533]
[1748334869900,1.86240849,109650.0,109640.0,0.32]
[1748334871005,1.86680031,109650.0,109640.0,0.32]
[1748334871498,1.73829572,109650.0,109640.0,0.32576111]
[1748334871694,1.86680031,109650.0,109640.0,0.32576111]
[1748334872610,1.86680031,109650.0,109640.0,0.17600445]
[1748334876300,1.88040759,109650.0,109640.0,0.17600445]
[1748334877016,1.88040759,109650.0,109640.0,0.22377067]
[1748334879220,1.88040759,109650.0,109640.0,0.19814797]
[1748334879399,1.88040759,109650.0,109640.0,0.04776622]
[1748334879604,1.88040759,109650.0,109640.0,0.07171727]
[1748334881015,1.93675264,109650.0,109640.0,0.07459641]
[1748334881718,1.93663264,109650.0,109640.0,0.07459641]
[1748334882015,1.93675264,109650.0,109640.0,0.33459641]
[1748334882412,1.88040759,109650.0,109640.0,0.33843807]
[1748334883117,1.87601577,109650.0,109640.0,0.33843807]
[1748334883617,1.74751118,109650.0,109640.0,0.33843807]
[1748334885012,1.74751118,109650.0,109640.0,0.33555893]
[1748334885216,1.87601577,109650.0,109640.0,0.33555893]
[1748334886118,1.88040759,109650.0,109640.0,0.33555893]
[1748334887120,1.87601577,109650.0,109640.0,0.33555893]
[1748334887911,1.87601577,109650.0,109640.0,0.33843851]
[1748334890619,1.74751118,109650.0,109640.0,0.33843851]
[1748334890813,1.87601577,109650.0,109640.0,0.33843851]
[1748334893522,2.23681577,109650.0,109640.0,0.33843851]
[1748334896922,1.51521577,109650.0,109640.0,0.33843851]
[1748334897118,2.23681577,109650.0,109640.0,0.33843851]
[1748334897315,1.69787118,109650.0,109640.0,0.33843851]
[1748334897523,2.23685577,109650.0,109640.0,0.33843851]
[1748334898128,0.7286839,109650.0,109640.0,0.6493033]
[1748334898318,0.3366639,109650.0,109640.0,0.7763073]
[1748334898519,0.3367839,109650.0,109640.0,0.6851033]
[1748334898717,0.3366639,109650.0,109640.0,1.11539003]
[1748334898917,0.3367839,109650.0,109640.0,1.11539003]
[1748334899118,0.3367839,109650.0,109640.0,0.98785297]
[1748334899319,0.3366639,109650.0,109640.0,0.98785297]
[1748334899526,0.3367839,109650.0,109640.0,0.89664897]
[1748334899715,0.3366639,109650.0,109640.0,0.89664897]
[1748334899916,0.3367839,109650.0,109640.0,0.89664897]
[1748334901524,0.7472239,109650.0,109640.0,0.89664897]
[1748334901724,0.3367839,109650.0,109640.0,1.07964897]
[1748334901924,0.7472239,109650.0,109640.0,1.07964897]
[1748334902614,0.7462239,109650.0,109640.0,1.07964897]
[1748334903324,0.7442239,109650.0,109640.0,1.07964897]
[1748334903522,0.3337839,109650.0,109640.0,1.07964897]
[1748334903715,0.11812,109650.0,109640.0,1.54935756]
[1748334903917,0.3004636,109650.0,109640.0,1.5966643]
[1748334904718,0.3005836,109650.0,109640.0,1.5966643]
[1748334904920,0.3004636,109650.0,109640.0,1.5966643]
[1748334905120,0.3005836,109650.0,109640.0,1.58897553]
[1748334905628,0.2995836,109650.0,109640.0,1.58897553]
[1748334905824,0.2995836,109650.0,109640.0,1.59197553]
[1748334906030,0.3345836,109650.0,109640.0,1.59197553]
[1748334906924,0.3345836,109650.0,109640.0,1.65000491]
[1748334908132,0.3345836,109650.0,109640.0,1.40947305]
[1748334909924,0.3345836,109650.0,109640.0,1.28096846]
[1748334910130,0.3345836,109650.0,109640.0,1.40947305]
[1748334910749,0.3345836,109650.0,109640.0,1.28096846]
[1748334910937,0.3345836,109650.0,109640.0,1.40947305]
[1748334911434,0.3345836,109650.0,109640.0,1.28096846]
[1748334911634,0.3345836,109650.0,109640.0,1.40947305]
[1748334913333,0.3345836,109650.0,109640.0,1.28096846]
[1748334913528,0.3345836,109650.0,109640.0,1.18976446]
[1748334913728,0.4028836,109650.0,109640.0,1.18976446]
[1748334914038,1.1740836,109650.0,109640.0,0.61080426]
[1748334914222,1.1740836,109650.0,109640.0,0.42780426]
[1748334915240,1.1740836,109650.0,109640.0,0.42380426]
[1748334915432,1.1750836,109650.0,109640.0,0.42380426]
[1748334916538,1.1750836,109650.0,109640.0,0.42280426]
[1748334919243,1.1750836,109650.0,109640.0,0.60516456]
[1748334919739,1.1750836,109650.0,109640.0,0.60148695]
[1748334921640,1.1750836,109650.0,109640.0,0.49815083]
[1748334923040,0.8142836,109650.0,109640.0,0.49815083]
[1748334923244,1.1750836,109650.0,109640.0,0.49815083]
[1748334924730,1.1750836,109650.0,109640.0,0.50009053]
[1748334925247,1.2936636,109650.0,109640.0,0.50009053]
[1748334926543,1.2936636,109650.0,109640.0,0.54777985]
[1748334928851,1.2936636,109650.0,109640.0,0.60417613]
[1748334929745,1.78296819,109650.0,109640.0,0.42181583]
[1748334929939,1.78296819,109650.0,109640.0,0.24181583]
[1748334930136,1.78296819,109650.0,109640.0,0.13381583]
[1748334930336,1.78296819,109650.0,109640.0,0.07981583]
[1748334930737,1.78296819,109650.0,109640.0,0.03161943]
[1748334930947,1.78736001,109650.0,109640.0,0.03548611]
[1748334931148,1.65885542,109650.0,109640.0,0.03548611]
[1748334931352,1.78736001,109650.0,109640.0,0.03548611]
[1748334931952,1.78296819,109650.0,109640.0,0.02968251]
[1748334932342,1.6544636,109650.0,109640.0,0.02968251]
[1748334932545,1.78296819,109650.0,109640.0,0.02968251]
[1748334933047,1.78736001,109650.0,109640.0,0.02968251]
[1748334933246,1.78736001,109650.0,109640.0,0.0325794]
[1748334934046,1.78284819,109650.0,109640.0,0.0325794]
[1748334935058,1.78724001,109650.0,109640.0,0.0325794]
[1748334935759,1.80089355,109650.0,109640.0,0.0325794]
[1748334935960,1.79650173,109650.0,109640.0,0.0325794]
[1748334937060,1.80089355,109650.0,109640.0,0.0325794]
[1748334938060,2.27060214,109650.0,109630.0,0.0058036]
[1748334938353,1.33382489,109640.0,109630.0,1e-07]
[1748334938860,1.67503689,109640.0,109630.0,1e-07]
[1748334939550,1.67503689,109640.0,109630.0,0.01000005]
[1748334939750,1.73138194,109640.0,109630.0,5e-08]
[1748334940157,0.1824102,109610.0,109600.0,0.13165566]
[1748334940461,0.6617902,109610.0,109600.0,0.62314554]
[1748334940758,1.1782702,109610.0,109600.0,0.44071874]
[1748334941156,1.2010702,109610.0,109600.0,0.44071874]
[1748334941350,1.2953802,109610.0,109600.0,0.44071874]
[1748334941753,0.6603202,109610.0,109600.0,0.62314554]
[1748334942047,0.3005202,109610.0,109600.0,0.80181252]
[1748334942856,0.3006402,109610.0,109600.0,0.80181252]
[1748334943050,0.3006402,109610.0,109600.0,0.80481252]
[1748334943247,0.3005202,109610.0,109600.0,0.81255253]
[1748334943446,0.3006402,109610.0,109600.0,0.81255253]
[1748334943960,0.3006402,109610.0,109600.0,0.86764672]
[1748334944960,0.3006402,109610.0,109600.0,1.22844672]
[1748334945362,0.3006402,109610.0,109600.0,0.86564672]
[1748334945548,0.2996402,109610.0,109600.0,0.86264672]
[1748334945962,0.2996402,109610.0,109600.0,1.04564672]
[1748334946164,0.2996402,109610.0,109600.0,0.99055253]
[1748334946663,0.2996402,109610.0,109600.0,1.35135253]
[1748334946964,0.2996402,109610.0,109600.0,0.99055253]
[1748334947263,0.2996402,109610.0,109600.0,1.35135253]
[1748334947966,0.2996402,109610.0,109600.0,0.99055253]
[1748334948169,0.2996402,109610.0,109600.0,1.35135253]
[1748334948365,0.2996402,109610.0,109600.0,0.99055253]
[1748334949066,0.2996402,109610.0,109600.0,1.04564672]
[1748334949267,0.2996402,109610.0,109600.0,1.40644672]
[1748334949469,0.2996402,109610.0,109600.0,1.04564672]
[1748334949766,0.2996402,109610.0,109600.0,1.40644672]
[1748334952771,0.29972328,109610.0,109600.0,1.26505636]
[1748334954372,0.29972328,109610.0,109600.0,1.20996217]
[1748334954580,0.29972328,109610.0,109600.0,0.84916217]
[1748334955968,0.29972328,109610.0,109600.0,0.91456217]
[1748334956168,0.29972328,109610.0,109600.0,0.94936217]
[1748334960975,0.29972328,109610.0,109600.0,1.31016217]
[1748334961370,0.29972328,109610.0,109600.0,1.18165758]
[1748334961571,0.29972328,109610.0,109600.0,1.31016217]
[1748334962282,0.29972328,109610.0,109600.0,1.30242216]
[1748334962479,0.29972328,109610.0,109600.0,1.17391757]
[1748334962684,0.29972328,109610.0,109600.0,1.30242216]
[1748334962982,0.29972328,109610.0,109600.0,1.35761401]
[1748334963982,0.11731308,109610.0,109600.0,1.35761401]
[1748334964282,0.11719308,109610.0,109600.0,1.5773546]
[1748334964483,0.11731308,109610.0,109600.0,1.45831815]
[1748334964782,0.11719308,109610.0,109600.0,1.95411815]
[1748334964988,0.11731308,109610.0,109600.0,1.8989263]
[1748334969693,0.11731308,109610.0,109600.0,1.4031263]
[1748334969888,0.11731308,109610.0,109600.0,1.81911815]
[1748334971093,0.11731308,109610.0,109600.0,1.80965001]
[1748334972892,0.11731308,109610.0,109600.0,1.9381546]
[1748334973093,0.11731308,109610.0,109600.0,1.94785634]
[1748334973491,0.11731308,109610.0,109600.0,1.85662034]
[1748334973695,0.11731308,109610.0,109600.0,1.94785634]
[1748334973994,0.11731308,109610.0,109600.0,1.81935175]
[1748334974585,0.11731308,109610.0,109600.0,1.72811575]
[1748334975198,0.11731308,109610.0,109600.0,2.04133916]
[1748334977394,0.00013688,109620.0,109610.0,0.1824102]
[1748334977700,0.1823799,109630.0,109620.0,0.1823936]
[1748334977701,0.2861769,109630.0,109620.0,0.1823936]
[1748334977998,0.1038,109630.0,109620.0,1.05729819]
[1748334978191,0.1038,109630.0,109620.0,1.12729819]
[1748334979301,0.2862969,109630.0,109620.0,1.12729819]
[1748334980494,0.10392,109630.0,109620.0,1.12729819]
[1748334980793,0.10792,109630.0,109620.0,1.13169001]
[1748334980990,0.290297,109630.0,109620.0,1.13169001]
[1748334981190,0.288297,109630.0,109620.0,1.13369001]
[1748334981604,0.288297,109630.0,109620.0,1.31669001]
[1748334982496,0.288297,109630.0,109620.0,1.28109001]
[1748334982693,0.286297,109630.0,109620.0,1.65633001]
[1748334982899,0.286297,109630.0,109620.0,1.65293819]
[1748334984103,0.286297,109630.0,109620.0,1.66652816]
[1748334985100,0.286297,109630.0,109620.0,1.6762299]
[1748334985902,0.10392,109630.0,109620.0,1.77758414]
[1748334986204,0.2862969,109630.0,109620.0,1.81228414]
[1748334986987,0.2862969,109630.0,109620.0,2.1806994]
[1748334987797,0.10392,109630.0,109620.0,2.1806994]
[1748334988002,0.2862969,109630.0,109620.0,2.1806994]
[1748334989306,0.2862969,109630.0,109620.0,1.81228414]
[1748334989505,0.2862969,109630.0,109620.0,2.25074414]
[1748334990004,0.2862969,109630.0,109620.0,2.12223955]
[1748334990208,0.2862969,109630.0,109620.0,2.25074414]
[1748334990395,0.2862969,109630.0,109620.0,1.36714414]
[1748334990705,0.2862969,109630.0,109620.0,2.12223955]
[1748334990908,0.2862969,109630.0,109620.0,2.25074414]
[1748334992606,0.2862969,109630.0,109620.0,1.71179955]
[1748334992898,0.2862969,109630.0,109620.0,2.25074414]
[1748334994018,0.10392,109630.0,109620.0,2.25074414]
[1748334994306,0.2862969,109630.0,109620.0,2.6870594]
[1748334994503,0.2862969,109630.0,109620.0,2.55855481]
[1748334994705,0.2862969,109630.0,109620.0,2.6870594]
[1748334994906,0.2862969,109630.0,109620.0,2.2423194]
[1748334995105,0.2862969,109630.0,109620.0,2.2087194]
[1748334995710,0.4048769,109630.0,109620.0,2.6191594]
[1748334996104,0.4048769,109630.0,109620.0,1.7355594]
[1748334996407,0.4048769,109630.0,109620.0,2.6191594]
[1748334996706,0.4048769,109630.0,109620.0,2.60945766]
[1748334996907,0.4048769,109630.0,109620.0,1.72585766]
[1748334997109,0.4048769,109630.0,109620.0,2.13629766]
[1748335000405,0.4048769,109630.0,109620.0,1.72585766]
[1748335001115,0.4048769,109630.0,109620.0,1.59735307]
[1748335001416,0.4048769,109630.0,109620.0,1.36714971]
[1748335001811,0.4048769,109630.0,109620.0,1.20384512]
[1748335002011,0.7656769,109630.0,109620.0,0.66065152]
[1748335002211,0.89418149,109630.0,109620.0,0.66065152]
[1748335002415,1.36734149,109630.0,109620.0,0.66065152]
[1748335002615,1.2388369,109630.0,109620.0,0.66841028]
[1748335002914,1.1761169,109630.0,109620.0,0.65870297]
[1748335003708,1.1761169,109630.0,109620.0,0.65670297]
[1748335003910,1.1781169,109630.0,109620.0,0.65670297]
[1748335004209,1.1781169,109630.0,109620.0,0.65570297]
[1748335004517,1.1791169,109630.0,109620.0,0.58692115]
[1748335004715,1.1791169,109630.0,109610.0,0.13880688]
[1748335004716,1.34788459,109630.0,109610.0,0.13880688]
[1748335004917,1.15061235,109620.0,109610.0,0.44880688]
[1748335005216,1.24184035,109620.0,109610.0,0.44880688]
[1748335005618,1.15061235,109620.0,109610.0,0.44880688]
[1748335005811,1.15061235,109620.0,109610.0,0.4487734]
[1748335006218,1.15995227,109620.0,109610.0,0.4487734]
[1748335007117,1.15995227,109620.0,109610.0,0.32104223]
[1748335007515,1.28945686,109620.0,109610.0,0.32104223]
[1748335008017,1.16095227,109620.0,109610.0,0.32104223]
[1748335008827,1.16095227,109620.0,109610.0,0.31813222]
[1748335009324,1.16095227,109620.0,109610.0,0.31676382]
[1748335010120,1.16095227,109620.0,109610.0,0.31289572]
[1748335010317,1.38068486,109620.0,109610.0,0.27910302]
[1748335010523,1.63068486,109620.0,109610.0,0.05501232]
[1748335010820,1.63068486,109620.0,109610.0,0.06783632]
[1748335012612,1.63068486,109620.0,109610.0,0.01971422]
[1748335014313,0.1824101,109610.0,109600.0,0.00013688]
[1748335014511,1.25109354,109610.0,109600.0,0.16013688]
[1748335016022,1.25109354,109610.0,109600.0,0.16213688]
[1748335016533,1.34232954,109610.0,109600.0,0.16313688]
[1748335019022,1.34332954,109610.0,109600.0,0.16013688]
[1748335024422,0.1824433,109590.0,109580.0,0.04507383]
[1748335024721,0.96870215,109590.0,109580.0,0.33507383]
[1748335025031,1.95274215,109590.0,109580.0,0.55133363]
[1748335025231,1.06962215,109590.0,109580.0,0.36887383]
[1748335025428,1.08066215,109590.0,109580.0,0.67983822]
[1748335025631,1.49126215,109590.0,109580.0,0.67983822]
[1748335025823,1.49226215,109590.0,109580.0,0.5485279]
[1748335026325,1.49214215,109590.0,109580.0,0.5485279]
[1748335026520,1.49226215,109590.0,109580.0,0.56143343]
[1748335026720,0.60902215,109590.0,109580.0,0.56143343]
[1748335027030,1.01962215,109590.0,109580.0,0.60760179]
[1748335027226,1.01962215,109590.0,109580.0,0.60960179]
[1748335027426,1.01950215,109590.0,109580.0,0.60960179]
[1748335027630,1.01962215,109590.0,109580.0,0.42714199]
[1748335027836,1.09056215,109590.0,109580.0,0.42714199]
[1748335028021,1.09056215,109590.0,109580.0,0.39334199]
[1748335029235,1.09056215,109590.0,109580.0,0.34717363]
[1748335031435,1.10455045,109590.0,109580.0,0.34717363]
[1748335032129,0.74375045,109590.0,109580.0,0.34717363]
[1748335032336,1.10455045,109590.0,109580.0,0.34717363]
[1748335032927,1.23305504,109590.0,109580.0,0.34717363]
[1748335033133,1.23305504,109590.0,109580.0,0.35297936]
[1748335033536,1.10455045,109590.0,109580.0,0.35297936]
[1748335033737,1.32430704,109590.0,109580.0,0.30728582]
[1748335033931,1.57430704,109590.0,109580.0,0.11987962]
[1748335034129,1.57430704,109590.0,109580.0,0.11407389]
[1748335034824,0.78516245,109590.0,109580.0,0.11407389]
[1748335035032,1.57723045,109590.0,109580.0,0.11407389]
[1748335035231,2.04586704,109590.0,109580.0,9e-08]
[1748335035529,1.79598704,109590.0,109580.0,0.01000009]
[1748335035936,1.16563045,109590.0,109580.0,0.01000009]
[1748335036136,1.6326555,109590.0,109580.0,0.01000009]
[1748335036435,1.6326555,109590.0,109580.0,0.04470009]
[1748335036936,1.6325355,109590.0,109580.0,0.04470009]
[1748335037139,1.57631045,109590.0,109580.0,0.04470009]
[1748335037339,1.70481504,109590.0,109580.0,0.04470009]
[1748335037635,0.10447513,109570.0,109540.0,0.01115032]
[1748335037936,0.58903618,109570.0,109560.0,0.0355]
[1748335038137,1.83323618,109570.0,109560.0,0.0555]
[1748335038338,2.01726121,109570.0,109560.0,0.0555]
[1748335038932,2.01926121,109570.0,109560.0,0.0555]
[1748335039128,0.1825105,109550.0,109540.0,0.00444301]
[1748335039329,1.84644353,109550.0,109540.0,0.31436926]
[1748335039541,1.88034353,109550.0,109540.0,0.35746926]
[1748335040136,1.88034353,109550.0,109540.0,0.34546926]
[1748335040342,1.88034353,109550.0,109540.0,0.38186926]
[1748335040529,2.1087726,109550.0,109530.0,0.01358997]
[1748335040732,0.43910159,109540.0,109530.0,0.09]
[1748335040934,2.0069476,109540.0,109530.0,0.09]
[1748335041137,2.0069476,109540.0,109530.0,0.1234]
[1748335041345,2.0070676,109540.0,109530.0,0.1585]
[1748335041641,2.0070676,109540.0,109530.0,0.0685]
[1748335041841,2.0070676,109540.0,109530.0,0.3385]
[1748335042238,2.0070676,109540.0,109530.0,0.3415]
[1748335042239,2.0080276,109540.0,109530.0,0.3415]
[1748335042440,2.0081476,109540.0,109530.0,0.3415]
[1748335042645,2.0081476,109540.0,109530.0,0.3885]
[1748335043038,0.6813523,109540.0,109530.0,0.5710438]
[1748335043236,1.0919923,109540.0,109530.0,0.5580438]
[1748335043543,1.0921123,109540.0,109530.0,0.5610438]
[1748335044042,0.6813523,109540.0,109530.0,0.5610438]
[1748335044244,1.0921123,109540.0,109530.0,0.5610438]
[1748335044944,1.1255123,109540.0,109530.0,0.5610438]
[1748335045948,1.1255123,109540.0,109530.0,0.5600438]
[1748335046248,1.1255123,109540.0,109530.0,0.5570438]
[1748335046557,0.7147523,109540.0,109530.0,0.5570438]
[1748335046844,1.0921123,109540.0,109530.0,0.5570438]
[1748335047044,0.274917,109540.0,109530.0,0.5570438]
[1748335047246,0.274797,109540.0,109530.0,0.5570438]
[1748335047429,0.274917,109540.0,109530.0,0.5570438]
[1748335047635,0.274917,109540.0,109530.0,0.9178438]
[1748335047845,0.274917,109540.0,109530.0,0.9309874]
[1748335048648,0.274917,109540.0,109530.0,0.5701874]
[1748335048848,0.274797,109540.0,109530.0,0.5701874]
[1748335049147,0.274917,109540.0,109530.0,0.5701874]
[1748335050549,0.274917,109540.0,109530.0,0.9309874]
[1748335051050,0.2292817,109540.0,109530.0,1.05949199]
[1748335052039,0.2292817,109540.0,109530.0,0.9309874]
[1748335052549,0.2292817,109540.0,109530.0,1.1139874]
[1748335054152,0.2292817,109540.0,109530.0,0.9309874]
[1748335055254,0.2292817,109540.0,109530.0,0.93537922]
[1748335055754,0.22038111,109540.0,109530.0,0.93537922]
[1748335056456,0.22038111,109540.0,109530.0,0.57457922]
[1748335058657,0.22038111,109540.0,109530.0,0.58230382]
[1748335059646,0.25408111,109540.0,109530.0,0.58230382]
[1748335061660,0.25408111,109540.0,109530.0,0.62843178]
[1748335063162,0.25408111,109540.0,109530.0,0.62403996]
[1748335063861,0.25408111,109540.0,109530.0,0.75254455]
[1748335064262,0.25408111,109540.0,109530.0,0.75693637]
[1748335065965,0.2451805,109540.0,109530.0,0.75693637]
[1748335066567,0.2451805,109540.0,109530.0,0.62843178]
[1748335066772,0.2807805,109540.0,109530.0,0.62843178]
[1748335067767,0.2807805,109540.0,109530.0,0.62070718]
[1748335068671,0.2807805,109540.0,109530.0,0.55160718]
[1748335068967,0.2807805,109540.0,109530.0,0.98180718]
[1748335069574,0.2451805,109540.0,109530.0,1.11031177]
[1748335069869,0.2172272,109540.0,109530.0,1.11031177]
[1748335070062,0.2173472,109540.0,109530.0,1.11031177]
[1748335070370,0.2173472,109540.0,109530.0,1.16546685]
[1748335072264,0.2172272,109540.0,109530.0,1.16546685]
[1748335072571,0.2173472,109540.0,109530.0,1.16546685]
[1748335072770,0.2514472,109540.0,109530.0,1.16546685]
[1748335073169,0.2514472,109540.0,109530.0,1.12001908]
[1748335073871,0.06892,109540.0,109530.0,1.12001908]
[1748335074071,0.2514471,109540.0,109530.0,1.12001908]
[1748335075474,0.2514471,109540.0,109530.0,1.17517416]
[1748335076367,0.24254677,109540.0,109530.0,1.17517416]
[1748335077078,0.24254677,109540.0,109530.0,1.04666957]
[1748335077373,0.24254677,109540.0,109530.0,1.17517416]
[1748335078076,0.24254677,109540.0,109530.0,1.12001908]
[1748335080373,0.24242677,109540.0,109530.0,1.12001908]
[1748335081075,0.24254677,109540.0,109530.0,1.12001908]
[1748335081472,0.24254677,109540.0,109530.0,0.99151449]
[1748335081869,0.24254677,109540.0,109530.0,1.12001908]
[1748335082681,0.24254677,109540.0,109530.0,1.17524526]
[1748335082880,0.24254677,109540.0,109530.0,1.54398682]
[1748335085081,0.24254677,109540.0,109530.0,1.40577492]
[1748335085274,0.24254677,109540.0,109530.0,1.16553795]
[1748335085666,0.02591967,109540.0,109530.0,1.16553795]
[1748335085872,0.02591967,109540.0,109530.0,1.34853795]
[1748335086067,0.25274998,109550.0,109540.0,0.1825271]
[1748335086271,0.33207778,109550.0,109540.0,0.5787271]
[1748335086468,0.33207778,109550.0,109540.0,1.01723169]
[1748335086674,0.33219778,109550.0,109540.0,1.01723169]
[1748335086873,0.28656998,109550.0,109540.0,1.01723169]
[1748335087384,0.28756998,109550.0,109540.0,1.01723169]
[1748335087772,0.28756998,109550.0,109540.0,0.89844492]
[1748335087976,0.28756998,109550.0,109540.0,1.02694951]
[1748335088272,0.28756998,109550.0,109540.0,1.12830365]
[1748335088472,0.28856998,109550.0,109540.0,1.12930365]
[1748335089380,0.03875688,109550.0,109540.0,1.12930365]
[1748335089580,0.03875688,109550.0,109540.0,1.57690365]
[1748335089887,0.03863688,109550.0,109540.0,2.04674365]
[1748335090072,0.03875688,109550.0,109540.0,2.04674365]
[1748335090278,0.00225688,109550.0,109540.0,2.04674365]
[1748335090576,0.273707,109580.0,109570.0,0.1824771]
[1748335090775,0.344607,109580.0,109570.0,0.8532771]
[1748335090977,0.344727,109580.0,109570.0,0.5292771]
[1748335091389,0.344727,109580.0,109570.0,0.53703896]
[1748335091989,0.07102,109580.0,109570.0,1.02634355]
[1748335092287,0.0749,109580.0,109570.0,1.09884355]
[1748335092485,0.07502,109580.0,109570.0,1.09884355]
[1748335092686,0.07502,109580.0,109570.0,1.15895256]
[1748335092884,0.00912,109580.0,109570.0,1.25021256]
[1748335093288,0.006,109580.0,109570.0,1.2424507]
[1748335093474,0.00112,109580.0,109570.0,1.2424507]
[1748335093679,0.00013688,109590.0,109580.0,0.1824605]
[1748335093979,0.00013688,109590.0,109580.0,1.95472509]
[1748335094179,0.4976058,109620.0,109600.0,0.1368128]
[1748335094392,0.7165139,109620.0,109610.0,0.34701519]
[1748335094599,0.3557139,109620.0,109610.0,0.5385106]
[1748335095087,0.3557139,109620.0,109610.0,0.54526318]
[1748335095594,0.4290139,109620.0,109610.0,0.54626318]
[1748335096097,0.4291339,109620.0,109610.0,0.54626318]
[1748335096294,0.4291339,109620.0,109610.0,0.6045679]
[1748335096787,0.4351339,109620.0,109610.0,0.6045679]
[1748335097187,0.4351339,109620.0,109610.0,0.59529123]
[1748335098182,0.4351339,109620.0,109610.0,0.41288063]
[1748335098491,0.4311339,109620.0,109610.0,0.59429113]
[1748335099294,0.4271339,109620.0,109610.0,0.59429113]
[1748335099786,0.4271339,109620.0,109610.0,0.59138392]
[1748335101095,0.4271339,109620.0,109610.0,0.55447395]
[1748335101391,0.4271339,109620.0,109610.0,0.54525596]
[1748335101594,0.4261339,109620.0,109610.0,0.54625596]
[1748335102296,0.4251339,109620.0,109610.0,0.54625596]
[1748335102998,0.4251339,109620.0,109610.0,0.55064778]
[1748335103496,0.4251339,109620.0,109610.0,0.54678814]
[1748335103798,0.4251339,109620.0,109610.0,0.56046814]
[1748335106795,0.4251339,109620.0,109610.0,0.68897273]
[1748335107895,0.4251339,109620.0,109610.0,0.56046814]
[1748335108204,0.4251339,109620.0,109610.0,0.68897273]
[1748335109491,0.3339296,109620.0,109610.0,1.04977273]
[1748335109696,0.3339296,109620.0,109610.0,1.12037273]
[1748335109899,0.3338096,109620.0,109610.0,1.12037273]
[1748335110091,0.3338096,109620.0,109610.0,1.12423237]
[1748335110699,0.3339296,109620.0,109610.0,1.12423237]
[1748335111001,0.3339296,109620.0,109610.0,1.12713958]
[1748335111503,0.3339296,109620.0,109610.0,0.99863499]
[1748335111693,0.3339296,109620.0,109610.0,1.12713958]
[1748335113399,0.3338096,109620.0,109610.0,1.1743018]
[1748335113603,0.3339296,109620.0,109610.0,1.1743018]
[1748335114394,0.3339296,109620.0,109610.0,1.1405018]
[1748335114794,0.3339296,109620.0,109610.0,1.13664216]
[1748335115099,0.3339296,109620.0,109610.0,1.08947994]
[1748335115100,0.10592,109620.0,109610.0,1.08947994]
[1748335115297,0.0721,109620.0,109610.0,1.08947994]
[1748335115600,0.03572,109620.0,109610.0,1.08947994]
[1748335117801,0.001,109620.0,109610.0,1.08947994]
[1748335117998,0.00112,109620.0,109610.0,1.08947994]
[1748335118300,0.001,109620.0,109610.0,1.11068994]
[1748335118495,0.00112,109620.0,109610.0,0.98412589]
[1748335118803,0.03782,109620.0,109610.0,1.11263048]
[1748335119696,0.03782,109620.0,109610.0,0.98412589]
[1748335119902,0.03782,109620.0,109610.0,1.11263048]
[1748335120500,0.03782,109620.0,109610.0,1.28789691]
[1748335120501,0.07342,109620.0,109610.0,1.28789691]
[1748335123502,0.07342,109620.0,109610.0,1.39061405]
[1748335123892,0.07342,109620.0,109610.0,1.75141405]
[1748335125708,0.07342,109620.0,109610.0,1.62290946]
[1748335125899,0.07342,109620.0,109610.0,1.75141405]
[1748335126900,0.03782,109620.0,109610.0,1.75141405]
[1748335127895,0.07262,109620.0,109610.0,2.16189405]
[1748335128203,0.07262,109620.0,109610.0,2.10633913]
[1748335128403,0.07262,109620.0,109610.0,2.10194731]
[1748335129803,0.07262,109620.0,109610.0,2.10194738]
[1748335132208,0.07262,109620.0,109610.0,2.13314738]
[1748335136410,0.07262,109620.0,109610.0,2.1887023]
[1748335137514,0.07262,109620.0,109610.0,2.06019771]
[1748335137700,0.07262,109620.0,109610.0,2.1887023]
[1748335137900,0.07262,109620.0,109610.0,2.06019771]
[1748335138104,0.07262,109620.0,109610.0,2.1887023]
[1748335138409,0.07262,109620.0,109610.0,2.06019771]
[1748335138610,0.07262,109620.0,109610.0,2.1887023]
[1748335139407,0.07262,109620.0,109610.0,1.4671023]
[1748335139614,0.07262,109620.0,109610.0,2.1887023]
[1748335139914,0.07262,109620.0,109610.0,2.06019771]
[1748335140115,0.07262,109620.0,109610.0,2.1887023]
[1748335140814,0.07262,109620.0,109610.0,2.06019771]